[Event "December 12 Early 2023"]
[Site "https://www.chess.com"]
[Date "2023.12.12"]
[Round "10"]
[White "Shinkarev, M"]
[Black "Marcziter, Dmitrii"]
[Result "1-0"]
[Board "118"]
[TimeControl "180+1"]
[WhiteFideId "4145348"]
[BlackFideId "13900765"]
[WhiteElo "2467"]
[BlackElo "2307"]
[WhiteTeam "RUS"]
[BlackTeam "GER"]
[WhiteClock "0:01:02"]
[BlackClock "0:00:00"]

1. c4 {[%clk 0:02:59]}  e5 {[%clk 0:02:33]} 2. g3 {[%clk 0:02:57]}  Nc6 {[%clk 0:02:31]} 3. Bg2 {[%clk 0:02:57]}  g6 {[%clk 0:02:32]} 4. e3 {[%clk 0:02:56]}  Bg7 {[%clk 0:02:32]} 5. Nc3 {[%clk 0:02:55]}  d6 {[%clk 0:02:33]} 6. Nge2 {[%clk 0:02:55]}  Be6 {[%clk 0:02:33]} 7. Nd5 {[%clk 0:02:55]}  Qd7 {[%clk 0:02:32]} 8. h3 {[%clk 0:02:50]}  Nd8 {[%clk 0:02:30]} 9. d3 {[%clk 0:02:37]}  c6 {[%clk 0:02:28]} 10. Ndc3 {[%clk 0:02:37]}  Ne7 {[%clk 0:02:25]} 11. b3 {[%clk 0:02:36]}  O-O {[%clk 0:02:24]} 12. d4 {[%clk 0:02:34]}  Qc8 {[%clk 0:02:02]} 13. Ba3 {[%clk 0:02:31]}  Qc7 {[%clk 0:01:45]} 14. dxe5 {[%clk 0:02:28]}  dxe5 {[%clk 0:01:40]} 15. Bd6 {[%clk 0:02:22]}  Qd7 {[%clk 0:01:39]} 16. c5 {[%clk 0:02:19]}  Re8 {[%clk 0:01:33]} 17. e4 {[%clk 0:02:18]}  Nc8 {[%clk 0:01:32]} 18. Qd2 {[%clk 0:02:18]}  Nxd6 {[%clk 0:01:29]} 19. cxd6 {[%clk 0:02:17]}  f6 {[%clk 0:01:26]} 20. Rd1 {[%clk 0:02:15]}  Nf7 {[%clk 0:01:26]} 21. Qe3 {[%clk 0:02:06]}  b6 {[%clk 0:01:19]} 22. O-O {[%clk 0:02:02]}  Rad8 {[%clk 0:01:17]} 23. f4 {[%clk 0:02:01]}  f5 {[%clk 0:01:13]} 24. exf5 {[%clk 0:01:57]}  Bxf5 {[%clk 0:01:07]} 25. g4 {[%clk 0:01:56]}  exf4 {[%clk 0:01:02]} 26. Qxf4 {[%clk 0:01:55]}  Be5 {[%clk 0:00:59]} 27. Qf2 {[%clk 0:01:54]}  Be6 {[%clk 0:00:39]} 28. Ne4 {[%clk 0:01:54]}  Nxd6 {[%clk 0:00:27]} 29. Nf6+ {[%clk 0:01:49]}  Bxf6 {[%clk 0:00:26]} 30. Qxf6 {[%clk 0:01:50]}  Qg7 {[%clk 0:00:21]} 31. Bxc6 {[%clk 0:01:42]}  Re7 {[%clk 0:00:17]} 32. Qxg7+ {[%clk 0:01:36]}  Kxg7 {[%clk 0:00:17]} 33. Nf4 {[%clk 0:01:36]}  Nf7 {[%clk 0:00:14]} 34. Rde1 {[%clk 0:01:25]}  Rd6 {[%clk 0:00:12]} 35. Bb5 {[%clk 0:01:24]}  Ng5 {[%clk 0:00:10]} 36. h4 {[%clk 0:01:21]}  Nf7 {[%clk 0:00:08]} 37. g5 {[%clk 0:01:21]}  Nd8 {[%clk 0:00:06]} 38. Re3 {[%clk 0:01:19]}  Rf7 {[%clk 0:00:02]} 39. Nxe6+ {[%clk 0:01:16]}  Nxe6 {[%clk 0:00:02]} 40. Rxf7+ {[%clk 0:01:10]}  Kxf7 {[%clk 0:00:02]} 41. Bc4 {[%clk 0:01:11]}  Ke7 {[%clk 0:00:02]} 42. Kf2 {[%clk 0:01:06]}  Kd7 {[%clk 0:00:03]} 43. Rf3 {[%clk 0:01:05]}  Kc6 {[%clk 0:00:00]} 44. Rf7 {[%clk 0:01:02]} 1-0

[Event "December 12 Early 2023"]
[Site "https://www.chess.com"]
[Date "2023.12.12"]
[Round "10"]
[White "Spichkin, Alexander"]
[Black "Shapiro, Daniel"]
[Result "1-0"]
[Board "119"]
[TimeControl "180+1"]
[WhiteFideId "4144074"]
[BlackFideId "2001780"]
[WhiteElo "2465"]
[BlackElo "2303"]
[WhiteTeam "RUS"]
[BlackTeam "USA"]
[WhiteClock "0:01:59"]
[BlackClock "0:00:00"]

1. f4 {[%clk 0:02:58]}  Nf6 {[%clk 0:02:59]} 2. Nf3 {[%clk 0:02:59]}  g6 {[%clk 0:02:58]} 3. d3 {[%clk 0:02:57]}  c5 {[%clk 0:02:58]} 4. e4 {[%clk 0:02:57]}  d6 {[%clk 0:02:58]} 5. Be2 {[%clk 0:02:58]}  Bg7 {[%clk 0:02:59]} 6. Nc3 {[%clk 0:02:59]}  Nc6 {[%clk 0:02:59]} 7. O-O {[%clk 0:02:59]}  O-O {[%clk 0:02:59]} 8. Qe1 {[%clk 0:03:00]}  Bd7 {[%clk 0:02:58]} 9. Qh4 {[%clk 0:03:00]}  e6 {[%clk 0:02:54]} 10. f5 {[%clk 0:03:00]}  exf5 {[%clk 0:02:53]} 11. Bg5 {[%clk 0:02:59]}  h6 {[%clk 0:02:39]} 12. Bxh6 {[%clk 0:02:58]}  Bxh6 {[%clk 0:02:40]} 13. Qxh6 {[%clk 0:02:57]}  Ng4 {[%clk 0:02:39]} 14. Qd2 {[%clk 0:02:56]}  Kg7 {[%clk 0:02:17]} 15. h3 {[%clk 0:02:56]}  Nf6 {[%clk 0:02:10]} 16. Qg5 {[%clk 0:02:55]}  fxe4 {[%clk 0:02:02]} 17. dxe4 {[%clk 0:02:53]}  Nh5 {[%clk 0:01:42]} 18. Qe3 {[%clk 0:02:49]}  Ng3 {[%clk 0:01:33]} 19. Rf2 {[%clk 0:02:48]}  Qe7 {[%clk 0:01:29]} 20. Ng5 {[%clk 0:02:43]}  Nxe2+ {[%clk 0:01:18]} 21. Nxe2 {[%clk 0:02:40]}  f6 {[%clk 0:01:10]} 22. Nf3 {[%clk 0:02:39]}  Rae8 {[%clk 0:01:10]} 23. Ng3 {[%clk 0:02:37]}  d5 {[%clk 0:01:04]} 24. Rd1 {[%clk 0:02:37]}  dxe4 {[%clk 0:00:45]} 25. Nxe4 {[%clk 0:02:36]}  Bxh3 {[%clk 0:00:43]} 26. gxh3 {[%clk 0:02:24]}  Qxe4 {[%clk 0:00:41]} 27. Rd7+ {[%clk 0:02:24]}  Kg8 {[%clk 0:00:29]} 28. Qh6 {[%clk 0:02:21]}  Re7 {[%clk 0:00:29]} 29. Rd1 {[%clk 0:02:12]}  Rh7 {[%clk 0:00:20]} 30. Ng5 {[%clk 0:02:06]}  Rxh6 {[%clk 0:00:14]} 31. Nxe4 {[%clk 0:02:06]}  Rxh3 {[%clk 0:00:10]} 32. Nxf6+ {[%clk 0:02:04]}  Kg7 {[%clk 0:00:10]} 33. Rd7+ {[%clk 0:01:58]}  Rf7 {[%clk 0:00:10]} 34. Ne8+ {[%clk 0:01:58]}  Kg8 {[%clk 0:00:00]} 35. Rfxf7 {[%clk 0:01:59]} 1-0

[Event "December 12 Early 2023"]
[Site "https://www.chess.com"]
[Date "2023.12.12"]
[Round "10"]
[White "Golubenko, Valentina"]
[Black "Baches Garcia, Guillermo"]
[Result "0-1"]
[Board "120"]
[TimeControl "180+1"]
[WhiteFideId "4501993"]
[BlackFideId "2209764"]
[WhiteElo "2260"]
[BlackElo "2465"]
[WhiteTeam "CRO"]
[BlackTeam "ESP"]
[WhiteClock "0:00:00"]
[BlackClock "0:00:07"]

1. e4 {[%clk 0:03:00]}  d5 {[%clk 0:03:00]} 2. exd5 {[%clk 0:02:57]}  Qxd5 {[%clk 0:03:01]} 3. Nc3 {[%clk 0:02:57]}  Qa5 {[%clk 0:03:01]} 4. Nf3 {[%clk 0:02:57]}  Nf6 {[%clk 0:03:01]} 5. Bc4 {[%clk 0:02:53]}  Bg4 {[%clk 0:02:51]} 6. O-O {[%clk 0:02:51]}  Nc6 {[%clk 0:02:51]} 7. a3 {[%clk 0:02:46]}  e6 {[%clk 0:02:47]} 8. b4 {[%clk 0:02:45]}  Bxb4 {[%clk 0:02:41]} 9. Rb1 {[%clk 0:02:30]}  Bxc3 {[%clk 0:02:32]} 10. dxc3 {[%clk 0:02:30]}  Rb8 {[%clk 0:02:28]} 11. h3 {[%clk 0:02:17]}  Qxc3 {[%clk 0:02:08]} 12. Bb5 {[%clk 0:01:54]}  Bxf3 {[%clk 0:02:01]} 13. Qxf3 {[%clk 0:01:54]}  Qxf3 {[%clk 0:01:54]} 14. gxf3 {[%clk 0:01:55]}  O-O {[%clk 0:01:46]} 15. Be3 {[%clk 0:01:55]}  Nd5 {[%clk 0:01:42]} 16. Bc5 {[%clk 0:01:50]}  Rfd8 {[%clk 0:01:41]} 17. Bxc6 {[%clk 0:01:47]}  bxc6 {[%clk 0:01:41]} 18. Bxa7 {[%clk 0:01:47]}  Ra8 {[%clk 0:01:30]} 19. Bc5 {[%clk 0:01:47]}  g5 {[%clk 0:01:17]} 20. Rb7 {[%clk 0:01:32]}  Ra4 {[%clk 0:00:58]} 21. Rd1 {[%clk 0:01:01]}  Rc4 {[%clk 0:00:53]} 22. Be7 {[%clk 0:00:52]}  Ra8 {[%clk 0:00:52]} 23. Bxg5 {[%clk 0:00:46]}  Kg7 {[%clk 0:00:50]} 24. Bc1 {[%clk 0:00:31]}  Rxc2 {[%clk 0:00:48]} 25. Bb2+ {[%clk 0:00:31]}  Kg6 {[%clk 0:00:41]} 26. Rd4 {[%clk 0:00:23]}  c5 {[%clk 0:00:32]} 27. Rg4+ {[%clk 0:00:21]}  Kf5 {[%clk 0:00:30]} 28. Rg7 {[%clk 0:00:16]}  f6 {[%clk 0:00:29]} 29. Rxh7 {[%clk 0:00:15]}  Rg8+ {[%clk 0:00:25]} 30. Kf1 {[%clk 0:00:12]}  Kg6 {[%clk 0:00:20]} 31. Rh4 {[%clk 0:00:11]}  Kf5 {[%clk 0:00:16]} 32. Rh5+ {[%clk 0:00:11]}  Kg6 {[%clk 0:00:16]} 33. Rh4 {[%clk 0:00:11]}  Ra8 {[%clk 0:00:15]} 34. f4 {[%clk 0:00:08]}  Kf5 {[%clk 0:00:14]} 35. Rb3 {[%clk 0:00:08]}  Nxf4 {[%clk 0:00:12]} 36. Rf3 {[%clk 0:00:07]}  e5 {[%clk 0:00:12]} 37. Rh5+ {[%clk 0:00:06]}  Ke4 {[%clk 0:00:12]} 38. Re3+ {[%clk 0:00:06]}  Kd5 {[%clk 0:00:10]} 39. Bxe5 {[%clk 0:00:06]}  fxe5 {[%clk 0:00:10]} 40. Rexe5+ {[%clk 0:00:06]}  Kd4 {[%clk 0:00:09]} 41. Rh4 {[%clk 0:00:02]}  Rc1+ {[%clk 0:00:09]} 42. Re1 {[%clk 0:00:02]}  Rxe1+ {[%clk 0:00:09]} 43. Kxe1 {[%clk 0:00:03]}  Rf8 {[%clk 0:00:09]} 44. Kd2 {[%clk 0:00:03]}  c4 {[%clk 0:00:09]} 45. a4 {[%clk 0:00:02]}  c3+ {[%clk 0:00:09]} 46. Kc2 {[%clk 0:00:03]}  Ke4 {[%clk 0:00:09]} 47. Rh7 {[%clk 0:00:03]}  Kf3 {[%clk 0:00:08]} 48. Rxc7 {[%clk 0:00:00]}  Ne2 {[%clk 0:00:07]} 0-1

[Event "December 12 Early 2023"]
[Site "https://www.chess.com"]
[Date "2023.12.12"]
[Round "10"]
[White "Deveci, Huseyin Said"]
[Black "Leve, Nitai"]
[Result "0-1"]
[Board "122"]
[TimeControl "180+1"]
[WhiteFideId "26322455"]
[BlackFideId "2006898"]
[WhiteElo "2259"]
[BlackElo "2401"]
[WhiteTeam "TUR"]
[BlackTeam "USA"]
[WhiteClock "0:01:18"]
[BlackClock "0:02:25"]

1. Nf3 {[%clk 0:02:57]}  d6 {[%clk 0:03:00]} 2. g3 {[%clk 0:02:57]}  g6 {[%clk 0:03:01]} 3. Bg2 {[%clk 0:02:58]}  Bg7 {[%clk 0:03:01]} 4. O-O {[%clk 0:02:59]}  Nf6 {[%clk 0:03:02]} 5. d4 {[%clk 0:02:59]}  O-O {[%clk 0:03:03]} 6. c4 {[%clk 0:03:00]}  Nbd7 {[%clk 0:03:00]} 7. b3 {[%clk 0:03:00]}  e5 {[%clk 0:03:01]} 8. Bb2 {[%clk 0:03:01]}  Qe7 {[%clk 0:03:01]} 9. Nbd2 {[%clk 0:03:01]}  Nh5 {[%clk 0:03:00]} 10. e3 {[%clk 0:03:01]}  f5 {[%clk 0:03:00]} 11. Re1 {[%clk 0:02:58]}  e4 {[%clk 0:03:00]} 12. Nh4 {[%clk 0:02:56]}  Bf6 {[%clk 0:02:58]} 13. Nf1 {[%clk 0:02:24]}  Bxh4 {[%clk 0:02:56]} 14. gxh4 {[%clk 0:02:25]}  Qxh4 {[%clk 0:02:55]} 15. Ng3 {[%clk 0:02:26]}  Ndf6 {[%clk 0:02:54]} 16. d5 {[%clk 0:02:24]}  f4 {[%clk 0:02:53]} 17. exf4 {[%clk 0:02:23]}  Nxf4 {[%clk 0:02:49]} 18. Bxe4 {[%clk 0:02:17]}  Nh3+ {[%clk 0:02:34]} 19. Kg2 {[%clk 0:02:14]}  Ng4 {[%clk 0:02:30]} 20. f3 {[%clk 0:01:19]}  Nf4+ {[%clk 0:02:26]} 21. Kf1 {[%clk 0:01:19]}  Qh3+ {[%clk 0:02:25]} 22. Kg1 {[%clk 0:01:18]}  Qg2# {[%clk 0:02:25]} 0-1

[Event "December 12 Early 2023"]
[Site "https://www.chess.com"]
[Date "2023.12.12"]
[Round "10"]
[White "Kuchava, Ana"]
[Black "Kolmagorov, Alexey"]
[Result "0-1"]
[Board "124"]
[TimeControl "180+1"]
[WhiteFideId "13605348"]
[BlackFideId "34129402"]
[WhiteElo "2227"]
[BlackElo "2363"]
[WhiteTeam "GEO"]
[BlackTeam "RUS"]
[WhiteClock "0:00:00"]
[BlackClock "0:00:58"]

1. d4 {[%clk 0:03:00]}  Nf6 {[%clk 0:02:59]} 2. Nf3 {[%clk 0:02:59]}  d5 {[%clk 0:02:59]} 3. c4 {[%clk 0:02:58]}  e6 {[%clk 0:03:00]} 4. Nc3 {[%clk 0:02:55]}  a6 {[%clk 0:03:00]} 5. e3 {[%clk 0:02:52]}  dxc4 {[%clk 0:02:59]} 6. Bxc4 {[%clk 0:02:53]}  b5 {[%clk 0:03:00]} 7. Bd3 {[%clk 0:02:51]}  Bb7 {[%clk 0:03:01]} 8. O-O {[%clk 0:02:51]}  c5 {[%clk 0:03:00]} 9. a3 {[%clk 0:02:45]}  Nbd7 {[%clk 0:02:53]} 10. Qe2 {[%clk 0:02:42]}  Be7 {[%clk 0:02:40]} 11. Rd1 {[%clk 0:02:30]}  Qb6 {[%clk 0:02:39]} 12. Bc2 {[%clk 0:02:07]}  O-O {[%clk 0:02:35]} 13. e4 {[%clk 0:02:05]}  cxd4 {[%clk 0:02:31]} 14. Nxd4 {[%clk 0:02:06]}  Ne5 {[%clk 0:02:24]} 15. Bb3 {[%clk 0:01:28]}  Bc5 {[%clk 0:02:12]} 16. Be3 {[%clk 0:01:17]}  Nfg4 {[%clk 0:02:10]} 17. Nc2 {[%clk 0:00:53]}  Nxe3 {[%clk 0:02:08]} 18. Nxe3 {[%clk 0:00:53]}  Bxe3 {[%clk 0:01:52]} 19. Qxe3 {[%clk 0:00:51]}  Qxe3 {[%clk 0:01:52]} 20. fxe3 {[%clk 0:00:52]}  Rfd8 {[%clk 0:01:52]} 21. h3 {[%clk 0:00:48]}  Nd3 {[%clk 0:01:44]} 22. Rd2 {[%clk 0:00:45]}  Nc5 {[%clk 0:01:41]} 23. Rxd8+ {[%clk 0:00:37]}  Rxd8 {[%clk 0:01:42]} 24. Bc2 {[%clk 0:00:37]}  Rd2 {[%clk 0:01:42]} 25. Rd1 {[%clk 0:00:38]}  Rxd1+ {[%clk 0:01:40]} 26. Bxd1 {[%clk 0:00:37]}  Nxe4 {[%clk 0:01:28]} 27. Bf3 {[%clk 0:00:25]}  Nc5 {[%clk 0:01:22]} 28. Bxb7 {[%clk 0:00:19]}  Nxb7 {[%clk 0:01:23]} 29. Kf2 {[%clk 0:00:17]}  Nd6 {[%clk 0:01:23]} 30. b3 {[%clk 0:00:13]}  Kf8 {[%clk 0:01:19]} 31. Kf3 {[%clk 0:00:10]}  Ke7 {[%clk 0:01:18]} 32. e4 {[%clk 0:00:09]}  Kd7 {[%clk 0:01:14]} 33. Ke3 {[%clk 0:00:08]}  Kc6 {[%clk 0:01:11]} 34. Kd4 {[%clk 0:00:08]}  Nb7 {[%clk 0:01:03]} 35. b4 {[%clk 0:00:06]}  Nd6 {[%clk 0:01:01]} 36. a4 {[%clk 0:00:07]}  Nc4 {[%clk 0:00:57]} 37. axb5+ {[%clk 0:00:00]}  axb5 {[%clk 0:00:58]} 0-1

[Event "December 12 Early 2023"]
[Site "https://www.chess.com"]
[Date "2023.12.12"]
[Round "10"]
[White "Fernandez Hernandez, Gerardo"]
[Black "Zaksaite, Salomeja"]
[Result "1-0"]
[Board "126"]
[TimeControl "180+1"]
[WhiteFideId "2207400"]
[BlackFideId "12801496"]
[WhiteElo "2204"]
[BlackElo "2358"]
[WhiteTeam "ESP"]
[BlackTeam "LTU"]
[WhiteClock "0:00:17"]
[BlackClock "0:00:00"]

1. e4 {[%clk 0:03:00]}  e6 {[%clk 0:02:51]} 2. d3 {[%clk 0:02:59]}  d5 {[%clk 0:02:47]} 3. Nd2 {[%clk 0:02:59]}  e5 {[%clk 0:02:47]} 4. Ngf3 {[%clk 0:02:58]}  Nc6 {[%clk 0:02:46]} 5. exd5 {[%clk 0:02:57]}  Qxd5 {[%clk 0:02:45]} 6. g3 {[%clk 0:02:57]}  Nf6 {[%clk 0:02:10]} 7. Bg2 {[%clk 0:02:56]}  Be7 {[%clk 0:02:08]} 8. O-O {[%clk 0:02:56]}  O-O {[%clk 0:02:08]} 9. Re1 {[%clk 0:02:56]}  Bg4 {[%clk 0:01:15]} 10. h3 {[%clk 0:02:48]}  Bxf3 {[%clk 0:01:14]} 11. Nxf3 {[%clk 0:02:47]}  Qd6 {[%clk 0:01:11]} 12. Qe2 {[%clk 0:02:34]}  Nd7 {[%clk 0:01:08]} 13. c3 {[%clk 0:02:14]}  Rfe8 {[%clk 0:01:07]} 14. Be3 {[%clk 0:02:09]}  Bf8 {[%clk 0:01:07]} 15. Rad1 {[%clk 0:02:07]}  f5 {[%clk 0:01:06]} 16. h4 {[%clk 0:01:42]}  h6 {[%clk 0:01:04]} 17. Bc1 {[%clk 0:01:28]}  Rad8 {[%clk 0:01:00]} 18. Nd2 {[%clk 0:01:27]}  Nc5 {[%clk 0:00:57]} 19. Nc4 {[%clk 0:01:24]}  Qg6 {[%clk 0:00:55]} 20. Bf3 {[%clk 0:01:20]}  Re7 {[%clk 0:00:35]} 21. Bxc6 {[%clk 0:01:05]}  Qxc6 {[%clk 0:00:34]} 22. Nxe5 {[%clk 0:01:05]}  Qd5 {[%clk 0:00:27]} 23. d4 {[%clk 0:00:58]}  Ne4 {[%clk 0:00:23]} 24. Ng6 {[%clk 0:00:39]}  Rf7 {[%clk 0:00:17]} 25. Ne5 {[%clk 0:00:36]}  Re7 {[%clk 0:00:16]} 26. Ng6 {[%clk 0:00:35]}  Rf7 {[%clk 0:00:16]} 27. Nf4 {[%clk 0:00:36]}  Qxa2 {[%clk 0:00:16]} 28. c4 {[%clk 0:00:33]}  c5 {[%clk 0:00:14]} 29. d5 {[%clk 0:00:32]}  a6 {[%clk 0:00:12]} 30. Ne6 {[%clk 0:00:32]}  Re8 {[%clk 0:00:11]} 31. Qh5 {[%clk 0:00:29]}  Bd6 {[%clk 0:00:10]} 32. Qe2 {[%clk 0:00:28]}  Qb3 {[%clk 0:00:10]} 33. Kh2 {[%clk 0:00:26]}  Nxg3 {[%clk 0:00:10]} 34. fxg3 {[%clk 0:00:25]}  Qxg3+ {[%clk 0:00:11]} 35. Kh1 {[%clk 0:00:25]}  Qxh4+ {[%clk 0:00:08]} 36. Kg1 {[%clk 0:00:25]}  Qg3+ {[%clk 0:00:04]} 37. Qg2 {[%clk 0:00:26]}  Qxg2+ {[%clk 0:00:02]} 38. Kxg2 {[%clk 0:00:27]}  f4 {[%clk 0:00:02]} 39. Kf3 {[%clk 0:00:27]}  g5 {[%clk 0:00:02]} 40. Rg1 {[%clk 0:00:26]}  Kh7 {[%clk 0:00:02]} 41. Rg2 {[%clk 0:00:25]}  Kg6 {[%clk 0:00:02]} 42. Rh1 {[%clk 0:00:23]}  Ree7 {[%clk 0:00:01]} 43. Bd2 {[%clk 0:00:22]}  b5 {[%clk 0:00:01]} 44. Kg4 {[%clk 0:00:21]}  Rb7 {[%clk 0:00:02]} 45. b3 {[%clk 0:00:21]}  bxc4 {[%clk 0:00:02]} 46. bxc4 {[%clk 0:00:22]}  Rb3 {[%clk 0:00:02]} 47. Rh3 {[%clk 0:00:21]}  Rxh3 {[%clk 0:00:01]} 48. Kxh3 {[%clk 0:00:22]}  f3 {[%clk 0:00:02]} 49. Rf2 {[%clk 0:00:20]}  h5 {[%clk 0:00:03]} 50. Nxg5 {[%clk 0:00:18]}  Rf5 {[%clk 0:00:03]} 51. Nxf3 {[%clk 0:00:18]}  Kf7 {[%clk 0:00:00]} 52. Ng5+ {[%clk 0:00:17]} 1-0

[Event "December 12 Early 2023"]
[Site "https://www.chess.com"]
[Date "2023.12.12"]
[Round "10"]
[White "Petrova, Irina"]
[Black "Adelman, Charles"]
[Result "1/2-1/2"]
[Board "129"]
[TimeControl "180+1"]
[WhiteFideId "14124122"]
[BlackFideId "2003597"]
[WhiteElo "2301"]
[BlackElo "2259"]
[WhiteTeam "UKR"]
[BlackTeam "USA"]
[WhiteClock "0:02:15"]
[BlackClock "0:02:02"]

1. e4 {[%clk 0:03:00]}  Nf6 {[%clk 0:02:58]} 2. e5 {[%clk 0:03:00]}  Nd5 {[%clk 0:02:57]} 3. d4 {[%clk 0:03:01]}  d6 {[%clk 0:02:57]} 4. c4 {[%clk 0:03:00]}  Nb6 {[%clk 0:02:57]} 5. exd6 {[%clk 0:03:01]}  cxd6 {[%clk 0:02:57]} 6. Nc3 {[%clk 0:03:00]}  g6 {[%clk 0:02:57]} 7. Be3 {[%clk 0:03:00]}  Bg7 {[%clk 0:02:57]} 8. Rc1 {[%clk 0:02:59]}  O-O {[%clk 0:02:57]} 9. b3 {[%clk 0:03:00]}  Nc6 {[%clk 0:02:57]} 10. Nf3 {[%clk 0:02:58]}  e5 {[%clk 0:02:57]} 11. dxe5 {[%clk 0:02:58]}  dxe5 {[%clk 0:02:57]} 12. Qxd8 {[%clk 0:02:56]}  Rxd8 {[%clk 0:02:56]} 13. Be2 {[%clk 0:02:56]}  Bg4 {[%clk 0:02:53]} 14. O-O {[%clk 0:02:55]}  Rab8 {[%clk 0:02:39]} 15. h3 {[%clk 0:02:48]}  Bxf3 {[%clk 0:02:39]} 16. Bxf3 {[%clk 0:02:49]}  Nd4 {[%clk 0:02:39]} 17. Bxd4 {[%clk 0:02:43]}  exd4 {[%clk 0:02:38]} 18. Nd5 {[%clk 0:02:43]}  Nxd5 {[%clk 0:02:36]} 19. Bxd5 {[%clk 0:02:44]}  Re8 {[%clk 0:02:31]} 20. Rfe1 {[%clk 0:02:44]}  Kf8 {[%clk 0:02:31]} 21. Kf1 {[%clk 0:02:39]}  b6 {[%clk 0:02:31]} 22. Bc6 {[%clk 0:02:37]}  Rxe1+ {[%clk 0:02:29]} 23. Rxe1 {[%clk 0:02:38]}  Rc8 {[%clk 0:02:28]} 24. Bd5 {[%clk 0:02:37]}  Re8 {[%clk 0:02:27]} 25. Rxe8+ {[%clk 0:02:31]}  Kxe8 {[%clk 0:02:27]} 26. Ke2 {[%clk 0:02:32]}  Ke7 {[%clk 0:02:27]} 27. Kd3 {[%clk 0:02:32]}  h6 {[%clk 0:02:25]} 28. b4 {[%clk 0:02:31]}  Be5 {[%clk 0:02:25]} 29. c5 {[%clk 0:02:31]}  bxc5 {[%clk 0:02:24]} 30. bxc5 {[%clk 0:02:32]}  f6 {[%clk 0:02:22]} 31. Kc4 {[%clk 0:02:27]}  Kd7 {[%clk 0:02:22]} 32. Be4 {[%clk 0:02:25]}  g5 {[%clk 0:02:21]} 33. Bc2 {[%clk 0:02:24]}  Kc7 {[%clk 0:02:19]} 34. Kd5 {[%clk 0:02:23]}  Kd7 {[%clk 0:02:16]} 35. c6+ {[%clk 0:02:20]}  Kc7 {[%clk 0:02:16]} 36. Bd3 {[%clk 0:02:21]}  Bd6 {[%clk 0:02:09]} 37. Kxd4 {[%clk 0:02:18]}  Kxc6 {[%clk 0:02:02]} 38. Be4+ {[%clk 0:02:15]} 1/2-1/2

[Event "December 12 Early 2023"]
[Site "https://www.chess.com"]
[Date "2023.12.12"]
[Round "10"]
[White "Zaichenko, Daria"]
[Black "Herman, Daniel"]
[Result "0-1"]
[Board "131"]
[TimeControl "180+1"]
[WhiteFideId "4197453"]
[BlackFideId "30935008"]
[WhiteElo "2233"]
[BlackElo "2437"]
[WhiteTeam "RUS"]
[BlackTeam "USA"]
[WhiteClock "0:00:23"]
[BlackClock "0:00:21"]

1. e4 {[%clk 0:02:15]}  Nf6 {[%clk 0:02:58]} 2. e5 {[%clk 0:02:14]}  Nd5 {[%clk 0:02:58]} 3. d4 {[%clk 0:02:14]}  d6 {[%clk 0:02:59]} 4. Nf3 {[%clk 0:02:13]}  dxe5 {[%clk 0:02:59]} 5. Nxe5 {[%clk 0:02:13]}  c6 {[%clk 0:03:00]} 6. c4 {[%clk 0:02:13]}  Nf6 {[%clk 0:02:59]} 7. Nc3 {[%clk 0:02:12]}  g6 {[%clk 0:02:58]} 8. Bd3 {[%clk 0:02:09]}  Bg7 {[%clk 0:02:58]} 9. O-O {[%clk 0:02:07]}  O-O {[%clk 0:02:41]} 10. Be3 {[%clk 0:02:06]}  Nbd7 {[%clk 0:02:34]} 11. f4 {[%clk 0:02:03]}  c5 {[%clk 0:02:29]} 12. d5 {[%clk 0:01:57]}  Nxe5 {[%clk 0:02:27]} 13. fxe5 {[%clk 0:01:57]}  Ng4 {[%clk 0:02:28]} 14. Bxc5 {[%clk 0:01:56]}  Nxe5 {[%clk 0:02:21]} 15. Be2 {[%clk 0:01:53]}  Qc7 {[%clk 0:02:16]} 16. b4 {[%clk 0:01:50]}  a6 {[%clk 0:01:57]} 17. Rc1 {[%clk 0:01:45]}  b6 {[%clk 0:01:44]} 18. Bd4 {[%clk 0:01:45]}  a5 {[%clk 0:01:26]} 19. Nb5 {[%clk 0:01:43]}  Qb8 {[%clk 0:01:23]} 20. a3 {[%clk 0:01:27]}  axb4 {[%clk 0:01:21]} 21. axb4 {[%clk 0:01:27]}  Bd7 {[%clk 0:01:16]} 22. Nc3 {[%clk 0:01:24]}  e6 {[%clk 0:01:00]} 23. Qd2 {[%clk 0:01:22]}  Rd8 {[%clk 0:00:55]} 24. Qf4 {[%clk 0:01:17]}  Be8 {[%clk 0:00:51]} 25. dxe6 {[%clk 0:01:05]}  Rxd4 {[%clk 0:00:51]} 26. exf7+ {[%clk 0:01:02]}  Bxf7 {[%clk 0:00:50]} 27. Qe3 {[%clk 0:00:57]}  Nxc4 {[%clk 0:00:46]} 28. Bxc4 {[%clk 0:00:55]}  Rxc4 {[%clk 0:00:45]} 29. Qe7 {[%clk 0:00:54]}  Qe8 {[%clk 0:00:35]} 30. Qxe8+ {[%clk 0:00:50]}  Rxe8 {[%clk 0:00:35]} 31. Nb5 {[%clk 0:00:49]}  Rxc1 {[%clk 0:00:32]} 32. Rxc1 {[%clk 0:00:49]}  Bd5 {[%clk 0:00:28]} 33. Rd1 {[%clk 0:00:42]}  Be4 {[%clk 0:00:24]} 34. Rd6 {[%clk 0:00:34]}  Rf8 {[%clk 0:00:21]} 35. Rxb6 {[%clk 0:00:23]}  Bh6 {[%clk 0:00:21]} 0-1

[Event "December 12 Early 2023"]
[Site "https://www.chess.com"]
[Date "2023.12.12"]
[Round "10"]
[White "Kniazev, Igor"]
[Black "Kleibel, Uwe"]
[Result "0-1"]
[Board "133"]
[TimeControl "180+1"]
[WhiteFideId "4136349"]
[BlackFideId "1270982"]
[WhiteElo "2077"]
[BlackElo "2316"]
[WhiteTeam "RUS"]
[BlackTeam "GER"]
[WhiteClock "0:02:09"]
[BlackClock "0:02:08"]

1. e4 {[%clk 0:03:00]}  e5 {[%clk 0:02:58]} 2. Nf3 {[%clk 0:03:00]}  Nc6 {[%clk 0:02:59]} 3. Bc4 {[%clk 0:03:00]}  Nf6 {[%clk 0:02:59]} 4. Ng5 {[%clk 0:02:59]}  d5 {[%clk 0:02:58]} 5. exd5 {[%clk 0:02:59]}  Na5 {[%clk 0:02:58]} 6. Bb5+ {[%clk 0:02:59]}  c6 {[%clk 0:02:59]} 7. dxc6 {[%clk 0:02:59]}  bxc6 {[%clk 0:03:00]} 8. Ba4 {[%clk 0:02:59]}  h6 {[%clk 0:02:53]} 9. Nf3 {[%clk 0:02:59]}  e4 {[%clk 0:02:46]} 10. Qe2 {[%clk 0:02:58]}  Bd6 {[%clk 0:02:45]} 11. Nd4 {[%clk 0:02:55]}  O-O {[%clk 0:02:44]} 12. Nxc6 {[%clk 0:02:50]}  Nxc6 {[%clk 0:02:37]} 13. Bxc6 {[%clk 0:02:50]}  Rb8 {[%clk 0:02:38]} 14. Nc3 {[%clk 0:02:49]}  Qb6 {[%clk 0:02:32]} 15. Bxe4 {[%clk 0:02:31]}  Nxe4 {[%clk 0:02:30]} 16. Nxe4 {[%clk 0:02:30]}  Re8 {[%clk 0:02:27]} 17. Nf6+ {[%clk 0:02:29]}  gxf6 {[%clk 0:02:25]} 18. Qxe8+ {[%clk 0:02:29]}  Kg7 {[%clk 0:02:26]} 19. O-O {[%clk 0:02:17]}  Ba6 {[%clk 0:02:23]} 20. d3 {[%clk 0:02:16]}  Rxe8 {[%clk 0:02:21]} 21. b3 {[%clk 0:02:14]}  Bc5 {[%clk 0:02:08]} 22. Be3 {[%clk 0:02:15]}  Bxe3 {[%clk 0:02:07]} 23. fxe3 {[%clk 0:02:09]}  Qxe3+ {[%clk 0:02:08]} 0-1